bitfinex-derivatives/quotes_ETHF0:USTF0_20240922
["timestamp","ask_amount","ask_price","bid_price","bid_amount"]
[1727005043963,2.27447991,2583.8,2583.7,2.579]
[1727005048165,0.7557,2583.8,2583.7,2.579]
[1727005048670,0.7557,2583.8,2583.4,1.40078227]
[1727005048967,1.52068702,2583.5,2583.4,2.578]
[1727005049165,2.02503988,2583.6,2583.1,5.11128227]
[1727005049166,2.02503988,2583.6,2583.1,1.00928227]
[1727005049371,2.02503988,2583.6,2583.1,2.578]
[1727005049372,1.52075898,2583.3,2583.1,2.578]
[1727005049579,1.88745898,2583.2,2583.1,2.578]
[1727005050463,1.52075898,2583.2,2583.1,2.578]
[1727005050666,1.90085898,2583.4,2583.1,2.578]
[1727005051067,0.3801,2583.4,2583.2,0.3724]
[1727005051361,0.3801,2583.4,2583.3,0.7752]
[1727005051765,0.3801,2583.4,2583.3,3.983]
[1727005052069,0.3801,2583.4,2583.3,0.7752]
[1727005052471,1.52075898,2583.5,2583.3,0.7752]
[1727005052776,1.91385898,2583.6,2583.3,3.983]
[1727005052966,1.91385898,2583.6,2583.3,0.7752]
[1727005053367,0.3931,2583.6,2583.3,0.7752]
[1727005053563,1.91385898,2583.6,2583.3,0.7752]
[1727005056166,0.3931,2583.6,2583.3,0.7752]
[1727005056563,0.3931,2583.6,2583.3,3.983]
[1727005056778,0.3931,2583.6,2583.3,0.7752]
[1727005059567,0.3931,2583.6,2583.2,2.579]
[1727005059568,1.91385898,2583.6,2583.2,2.579]
[1727005059768,1.91365898,2583.5,2583.2,2.579]
[1727005061166,1.52075898,2583.4,2583.1,2.579]
[1727005062275,1.52075898,2583.4,2583.0,3.6086]
[1727005062474,1.52075898,2583.4,2583.0,6.1876]
[1727005063978,1.52075898,2583.4,2583.0,3.6086]
[1727005064175,1.52075898,2583.4,2583.0,6.1876]
[1727005065880,1.52075898,2583.5,2583.0,6.1876]
[1727005066071,0.3931,2583.6,2583.3,3.2078]
[1727005066270,0.3931,2583.6,2583.4,0.7781]
[1727005068172,1.52075898,2583.8,2583.5,0.3688]
[1727005068384,1.92025898,2583.8,2583.5,0.3688]
[1727005069177,1.92025898,2583.8,2583.6,2.579]
[1727005069382,1.52075898,2583.9,2583.6,2.579]
[1727005069577,1.52075898,2583.9,2583.6,5.7868]
[1727005070069,1.92025898,2584.0,2583.6,5.7868]
[1727005070271,1.52075898,2583.9,2583.6,5.7868]
[1727005071078,0.3995,2584.0,2583.6,5.7868]
[1727005071271,1.92025898,2584.0,2583.6,5.7868]
[1727005077681,2.81913988,2584.2,2583.6,5.7868]
[1727005077682,1.52075898,2584.1,2583.6,5.7868]
[1727005078485,2.32565898,2584.2,2583.7,1.00928227]
[1727005078683,2.32565898,2584.2,2583.6,6.79608227]
[1727005078879,2.32565898,2584.2,2583.7,1.00928227]
[1727005079083,2.32565898,2584.2,2583.6,6.79608227]
[1727005079281,2.32565898,2584.2,2583.7,1.00928227]
[1727005079585,2.32565898,2584.2,2583.6,6.79608227]
[1727005080084,2.32565898,2584.2,2583.7,1.00928227]
[1727005080285,2.32565898,2584.2,2583.9,3.2078]
[1727005081089,2.32565898,2584.2,2583.9,3.576]
[1727005081090,1.92225898,2584.2,2583.9,3.576]
[1727005081387,0.4015,2584.2,2584.0,0.3698]
[1727005081585,0.4015,2584.2,2584.1,11.642]
[1727005084184,0.4015,2584.2,2584.1,9.1]
[1727005084484,0.4015,2584.2,2584.1,2.542]
[1727005084677,0.4015,2584.2,2584.0,0.3698]
[1727005084878,0.4015,2584.2,2584.1,2.542]
[1727005086585,1.92009772,2584.2,2584.1,2.542]
[1727005088585,0.4015,2584.2,2584.0,2.542]
[1727005088786,1.91689259,2584.1,2583.9,5.7498]
[1727005090997,1.91689259,2584.1,2583.9,2.542]
[1727005092295,0.3986,2584.1,2583.9,2.542]
[1727005093296,1.51829259,2584.3,2584.0,1.1498]
[1727005093496,0.7336,2584.5,2584.0,1.1498]
[1727005095394,0.3671,2584.5,2584.0,1.1498]
[1727005097192,0.3671,2584.5,2584.1,3.2078]
[1727005097888,3.5749,2584.5,2584.1,3.2078]
[1727005098195,0.3671,2584.5,2584.1,3.2078]
[1727005101195,33.86548,2584.7,2584.4,3.2078]
[1727005101498,33.86548,2584.7,2584.5,3.6914]
[1727005103803,33.86548,2584.7,2584.5,7.5602]
[1727005106305,33.86548,2584.7,2584.5,7.73435787]
[1727005106996,33.86548,2584.7,2584.5,3.86555787]
[1727005108291,33.86548,2584.7,2584.1,4.21708227]
[1727005108503,0.399,2584.6,2584.4,3.2078]
[1727005108796,33.86548,2584.7,2584.4,3.2078]
[1727005108997,33.86548,2584.7,2584.5,8.68828818]
[1727005109188,33.86548,2584.7,2584.6,0.3715]
[1727005109389,33.86548,2584.7,2584.6,4.43008573]
[1727005110106,33.28507939,2584.7,2584.6,4.43008573]
[1727005110395,33.28507939,2584.7,2584.6,13.53008573]
[1727005110792,33.09507939,2584.7,2584.6,13.3403]
[1727005110989,33.09507939,2584.7,2584.6,13.5304401]
[1727005112305,33.09507939,2584.7,2584.6,22.0714401]
[1727005112601,33.09507939,2584.7,2584.6,16.0714401]
[1727005114201,33.09507939,2584.7,2584.6,16.24547904]
[1727005115502,33.09507939,2584.7,2584.6,27.34293896]
[1727005116101,33.09507939,2584.7,2584.6,24.80193896]
[1727005116295,33.09507939,2584.7,2584.6,21.34293896]
[1727005117303,33.09507939,2584.7,2584.6,4.0589401]
[1727005117507,33.09507939,2584.7,2584.6,6.5999401]
[1727005131912,33.09507939,2584.7,2584.6,2.7311401]
[1727005132118,33.09507939,2584.7,2584.6,6.5999401]
[1727005132712,33.09507939,2584.7,2584.6,7.3999401]
[1727005134025,33.09507939,2584.7,2584.6,6.9980401]
[1727005135523,33.09507939,2584.7,2584.6,8.00732237]
[1727005136316,33.09507939,2584.7,2584.6,4.13852237]
[1727005136820,33.09507939,2584.7,2584.6,8.00732237]
[1727005137720,33.09507939,2584.7,2584.6,9.24495422]
[1727005138421,33.09507939,2584.7,2584.6,5.37664441]
[1727005138628,33.09507939,2584.7,2584.6,5.88083932]
[1727005138922,33.09507939,2584.7,2584.6,8.00800664]
[1727005139421,33.09507939,2584.7,2584.6,9.24612748]
[1727005140522,33.09507939,2584.7,2584.6,7.83806094]
[1727005140727,33.09507939,2584.7,2584.6,2.43828324]
[1727005140927,33.09507939,2584.7,2584.6,7.6089624]
[1727005141527,33.09507939,2584.7,2584.6,3.7401624]
[1727005141729,33.09507939,2584.7,2584.6,4.97856904]
[1727005141923,33.09507939,2584.7,2584.6,8.84734566]
[1727005142123,33.09507939,2584.7,2584.6,7.83732336]
[1727005142320,33.09507939,2584.7,2584.6,8.84773012]
[1727005142533,33.09507939,2584.7,2584.6,3.96852336]
[1727005143425,33.09507939,2584.7,2584.6,9.35124677]
[1727005144227,33.09507939,2584.7,2584.6,9.89514661]
[1727005144733,33.09507939,2584.7,2584.6,8.3812232]
[1727005144931,33.09507939,2584.7,2584.6,7.83732336]
[1727005145238,33.09507939,2584.7,2584.6,8.38126403]
[1727005145439,33.09507939,2584.7,2584.6,10.39573272]
[1727005145636,33.09507939,2584.7,2584.6,10.39572682]
[1727005145833,33.09507939,2584.7,2584.6,12.87465179]
[1727005146040,33.09507939,2584.7,2584.6,12.33071702]
[1727005146229,33.09507939,2584.7,2584.6,10.86016127]
[1727005146742,33.09507939,2584.7,2584.6,11.23486127]
[1727005147144,33.09507939,2584.7,2584.6,11.71786015]
[1727005147542,30.9668632,2584.7,2584.6,19.30370403]
[1727005147731,30.7109632,2584.7,2584.6,20.17439644]
[1727005147932,12.77572393,2584.7,2584.6,28.12283871]
[1727005148244,9.0723923,2584.7,2584.6,35.57098008]
[1727005148438,0.3769,2585.4,2584.6,35.76269401]
[1727005148638,0.3769,2585.4,2585.3,4.72343977]
[1727005148846,1.39089522,2585.4,2585.3,8.50182303]
[1727005149342,0.3769,2585.4,2585.3,6.98618326]
[1727005149748,0.3769,2585.4,2585.3,7.9961961]
[1727005150348,0.3769,2585.4,2585.3,6.75781284]
[1727005151847,0.3769,2585.4,2585.3,4.21781284]
[1727005152052,4.2449,2585.4,2585.2,1.01001284]
[1727005152257,4.2449,2585.4,2585.0,2.02085303]
[1727005152258,1.89519259,2585.4,2585.3,2.54]
[1727005152456,0.3769,2585.4,2585.3,2.54]
[1727005152660,5.76463789,2585.4,2585.2,2.54]
[1727005152853,1.89663789,2585.4,2585.2,2.54]
[1727005153050,1.51973789,2585.3,2585.2,2.54]
[1727005153354,1.89663789,2585.4,2585.2,2.54]
[1727005153561,1.51973789,2585.3,2585.2,2.54]
[1727005154161,4.88113285,2585.3,2585.2,2.54]
[1727005154362,4.88113233,2585.3,2585.2,2.54]
[1727005154763,3.868,2585.3,2585.2,2.54]
[1727005155057,4.88114645,2585.3,2585.2,2.54]
[1727005155261,4.88114867,2585.3,2585.2,2.54]
[1727005155562,5.38773789,2585.3,2585.2,2.54]
[1727005155754,3.868,2585.3,2585.2,2.54]
[1727005156159,1.89663789,2585.4,2585.2,2.54]
[1727005156467,1.01311195,2585.3,2585.2,2.54]
[1727005156761,5.38773789,2585.3,2585.2,1.9327]
[1727005157162,5.38773789,2585.3,2585.2,1.3254]
[1727005157762,5.89303988,2585.3,2585.2,0.1108]
[1727005158365,3.868,2585.3,2585.2,0.1108]
[1727005159658,5.38763628,2585.3,2585.2,0.1108]
[1727005160262,5.38764652,2585.3,2585.2,0.1108]
[1727005161358,5.38764652,2585.3,2585.1,2.54]
[1727005161563,1.51971054,2585.2,2585.1,2.54]
[1727005161759,5.38771054,2585.2,2584.9,0.3746]
[1727005161958,5.38771054,2585.2,2584.8,1.01001284]
[1727005161959,1.51971054,2585.0,2584.8,2.54]
[1727005162156,1.01321139,2584.9,2584.8,2.54]
[1727005162359,1.40301245,2584.9,2584.8,2.54]
[1727005162565,1.90951054,2584.9,2584.8,2.54]
[1727005162958,1.40297831,2584.9,2584.8,2.54]
[1727005163166,1.40297831,2584.9,2584.6,1.20172677]
[1727005163167,1.40298059,2584.9,2584.7,2.54]
[1727005165371,3.8688,2584.8,2584.7,2.54]
[1727005165663,4.88198059,2584.8,2584.7,2.54]
[1727005167870,1.01318059,2584.8,2584.7,5.7478]
[1727005168068,1.01318059,2584.8,2584.7,6.53]
[1727005174871,1.40298059,2584.9,2584.7,6.53]
[1727005175568,1.01318059,2584.9,2584.7,6.53]
[1727005175769,0.40578059,2585.0,2584.7,7.54001284]
[1727005175981,1.51971054,2585.1,2584.7,6.53]
[1727005176874,1.51971054,2585.1,2584.7,7.54001284]
[1727005177583,1.51971054,2585.1,2584.7,6.53]
[1727005178380,1.51971054,2585.1,2584.7,7.54001284]
[1727005179582,5.11361054,2585.2,2584.7,7.54001284]
[1727005179777,1.51971054,2585.1,2584.7,7.54001284]
[1727005179978,5.11361054,2585.2,2584.7,7.54001284]
[1727005180585,1.90581054,2585.2,2584.8,4.21781284]
[1727005180886,1.90581054,2585.2,2584.9,0.3852]
[1727005189384,1.90581054,2585.2,2584.9,1.39521284]
[1727005189385,0.3861,2585.2,2584.9,1.39521284]
[1727005189790,1.51971054,2585.3,2584.9,1.39521284]
[1727005190394,1.91381054,2585.4,2585.0,1.01001284]
[1727005190687,1.91381054,2585.4,2585.1,0.3939]
[1727005190885,1.91381054,2585.4,2585.1,0.7627]
[1727005191085,1.51971054,2585.3,2585.1,0.7627]
[1727005194191,1.51971054,2585.3,2585.1,3.3027]
[1727005195193,1.51971054,2585.2,2585.1,2.54]
[1727005195388,1.51971054,2585.2,2585.0,2.54]
[1727005195587,1.51999649,2585.1,2585.0,2.54]
[1727005197297,1.51999649,2585.1,2584.9,2.54]
[1727005197494,0.3801,2585.0,2584.9,2.54]
[1727005198104,0.3801,2585.0,2584.9,3.55001284]
[1727005200203,0.3801,2585.0,2584.9,1.01001284]
[1727005202094,0.3801,2585.0,2584.8,3.54901284]
[1727005202395,1.90009649,2585.0,2584.8,3.54901284]
[1727005205401,0.3801,2585.0,2584.8,3.54901284]
[1727005205591,1.90009649,2585.0,2584.8,3.54901284]
[1727005206797,1.90009649,2585.0,2584.8,1.01001284]
[1727005207099,1.90009649,2585.0,2584.8,3.54901284]
[1727005208794,5.38879649,2584.9,2584.7,1.01001284]
[1727005208994,6.68843988,2584.9,2584.5,1.01001284]
[1727005209199,2.02503988,2584.7,2584.3,6.75681284]
[1727005209400,2.53390769,2584.8,2584.3,6.75681284]
[1727005209401,1.52127931,2584.5,2584.3,6.75681284]
[1727005209606,2.40683988,2584.6,2584.3,2.539]
[1727005209607,1.52127931,2584.4,2584.3,2.539]
[1727005209997,1.52127931,2584.4,2584.2,1.1737]
[1727005212499,2.31587931,2584.5,2584.2,1.1737]
[1727005217197,0.4047,2584.5,2584.2,1.1737]
[1727005217404,1.90307931,2584.6,2584.2,1.1737]
[1727005217611,1.90307931,2584.6,2584.3,9.1]
[1727005217804,2.29767931,2584.6,2584.3,9.1]
[1727005219199,2.29767931,2584.6,2584.2,1.1737]
[1727005219701,2.29767931,2584.6,2584.3,9.1]
[1727005221503,0.7764,2584.6,2584.3,9.1]
[1727005222510,0.7764,2584.6,2584.2,1.1737]
[1727005223015,0.7764,2584.6,2584.2,10.2737]
[1727005223515,0.7764,2584.6,2584.2,9.1]
[1727005227816,0.7764,2584.6,2584.1,3.88480675]
[1727005228117,2.29767931,2584.6,2584.1,3.88480675]
[1727005228316,2.29767931,2584.6,2584.1,12.98480675]
[1727005230003,2.29767931,2584.6,2584.1,10.44480675]
[1727005230207,2.29767931,2584.6,2584.1,12.98380675]
[1727005233305,0.3818,2584.6,2584.1,12.98380675]
[1727005235319,0.3818,2584.6,2584.3,3.2078]
[1727005240210,1.52127931,2584.7,2584.3,3.2078]
[1727005241118,1.52127931,2584.7,2584.4,0.3879]
[1727005241415,1.52127931,2584.7,2584.5,0.7389]
[1727005242010,5.39007931,2584.7,2584.5,0.7389]
[1727005243216,1.52127931,2584.7,2584.5,0.7389]
[1727005243421,1.52127931,2584.6,2584.5,0.7389]
[1727005243816,1.52127931,2584.7,2584.5,0.7389]
[1727005247613,1.52127931,2584.6,2584.5,0.7389]
[1727005248520,5.62383988,2584.8,2584.5,0.7389]
[1727005248521,2.02503988,2584.7,2584.5,0.7389]
[1727005248920,5.89383988,2584.7,2584.5,0.7389]
[1727005249327,2.02503988,2584.7,2584.5,0.7389]
[1727005250526,2.02503988,2584.6,2584.5,0.7389]
[1727005251630,2.53390769,2584.7,2584.5,0.7389]
[1727005252224,2.02810939,2584.6,2584.5,0.7389]
[1727005252422,2.53390769,2584.7,2584.5,0.7389]
[1727005253527,2.53390769,2584.6,2584.5,0.7389]
[1727005257729,6.63948923,2584.8,2584.5,0.7389]
[1727005257925,2.53812591,2584.6,2584.5,0.7389]
[1727005262033,2.53812591,2584.7,2584.5,0.7389]
[1727005262527,2.53812591,2584.6,2584.5,0.7389]
[1727005263729,2.53812591,2584.7,2584.5,0.7389]
[1727005264235,2.03046567,2584.6,2584.5,1.74891284]
[1727005264429,2.03046567,2584.6,2584.5,6.19033195]
[1727005264738,2.03046567,2584.6,2584.5,2.98256879]
[1727005264933,2.03046567,2584.6,2584.5,3.48819572]
[1727005265127,2.03046567,2584.7,2584.5,3.48819572]
[1727005265330,2.03046567,2584.7,2584.6,1.01220086]
[1727005265732,2.03016435,2584.7,2584.6,1.01220086]
[1727005266038,2.03021604,2584.7,2584.6,1.01220086]
[1727005266237,2.92912591,2584.8,2584.5,1.75110086]
[1727005266435,2.03010621,2584.6,2584.5,1.75110086]
[1727005267531,2.53812591,2584.8,2584.5,1.75110086]
[1727005267532,2.03010621,2584.7,2584.5,2.98443739]
[1727005267732,2.03010621,2584.7,2584.5,1.75110086]
[1727005268439,1.52233404,2584.6,2584.5,1.75110086]
[1727005268731,1.52233404,2584.7,2584.5,4.03210793]
[1727005268931,1.52233404,2584.7,2584.6,2.75078727]
[1727005269137,1.52233404,2584.7,2584.6,5.95858727]
[1727005269333,1.52233404,2584.7,2584.6,1.23305856]
[1727005269539,1.52233404,2584.7,2584.6,4.44085856]
[1727005269836,1.52233404,2584.7,2584.6,1.23305856]
[1727005270037,1.52233404,2584.7,2584.6,2.75078727]
[1727005270233,1.52233404,2584.7,2584.6,2.24399673]
[1727005270838,1.52233404,2584.7,2584.6,2.24401914]
[1727005271234,1.52233404,2584.8,2584.6,2.24401914]
[1727005271443,1.52233404,2584.8,2584.6,1.0114198]
[1727005271644,1.52233404,2584.8,2584.7,0.3943]
[1727005273340,1.52233404,2584.8,2584.7,1.4057198]
[1727005273847,1.52233404,2584.8,2584.7,0.3943]
[1727005274644,2.03010621,2584.9,2584.7,0.3943]
[1727005275039,1.52119585,2584.8,2584.7,0.3943]
[1727005275244,1.52114888,2584.8,2584.7,0.3943]
[1727005277151,1.52114888,2584.9,2584.7,0.3943]
[1727005277346,1.52114888,2584.9,2584.7,1.4057198]
[1727005278348,1.52114888,2584.9,2584.7,0.3943]
[1727005279850,1.52114888,2584.9,2584.7,2.9323]
[1727005280042,1.89304888,2585.0,2584.7,3.9437198]
[1727005280348,1.89304888,2585.0,2584.7,1.4057198]
[1727005280536,1.52064168,2584.9,2584.8,2.538]
[1727005281250,1.52063185,2584.9,2584.8,2.538]
[1727005281548,2.40200621,2585.0,2584.8,2.538]
[1727005282944,2.03010621,2584.9,2584.8,2.538]
[1727005283153,2.40200621,2585.0,2584.8,2.538]
[1727005283550,2.03010621,2584.9,2584.8,2.538]
[1727005284048,2.40200621,2585.0,2584.8,2.538]
[1727005284747,2.03010621,2584.9,2584.8,2.538]
[1727005285246,2.40200621,2585.0,2584.8,2.538]
[1727005285446,2.03010621,2584.9,2584.8,2.538]
[1727005285746,2.40200621,2585.0,2584.8,2.538]
[1727005286641,2.40200621,2585.0,2584.7,2.9323]
[1727005286839,1.52045669,2584.8,2584.7,3.11047245]
[1727005287040,2.40200621,2585.0,2584.7,3.11047245]
[1727005287041,1.52045669,2584.9,2584.7,3.11047245]
[1727005287540,1.52045669,2584.8,2584.7,3.11047245]
[1727005288350,1.52045669,2584.9,2584.7,3.11047245]
[1727005288648,1.89235669,2585.0,2584.7,4.12189225]
[1727005289254,1.52045669,2585.1,2584.8,1.0114198]
[1727005289549,1.52045669,2585.1,2584.9,0.7751]
[1727005289933,1.52045669,2585.1,2585.0,0.3733]
[1727005293049,1.52045669,2585.1,2585.0,2.537]
[1727005293352,1.52045669,2585.1,2584.9,2.537]
[1727005294347,1.52045669,2585.0,2584.9,2.537]
[1727005296940,1.0132653,2585.0,2584.9,2.537]
[1727005298452,1.52045669,2585.1,2584.9,2.537]
[1727005298653,1.01332831,2585.0,2584.9,2.537]
[1727005301646,1.01332831,2585.0,2584.8,1.0114198]
[1727005301863,1.92125669,2584.9,2584.7,1.1583]
[1727005302052,1.01350309,2584.8,2584.7,0.7764]
[1727005302355,1.52045669,2584.8,2584.7,0.7764]
[1727005302749,1.52045669,2584.8,2584.7,1.1661]
[1727005303564,3.22680621,2584.9,2584.7,1.1661]
[1727005303861,3.22680621,2584.9,2584.7,0.7764]
[1727005304048,2.03010621,2584.8,2584.5,3.9625]
[1727005304254,1.52062012,2584.6,2584.5,3.9625]
[1727005307562,1.91102012,2584.6,2584.5,3.9625]
[1727005308763,1.52062012,2584.6,2584.5,3.9625]
[1727005308963,1.01411757,2584.6,2584.5,4.9739198]
[1727005309156,1.01411757,2584.6,2584.5,7.25633766]
[1727005310165,1.01411757,2584.6,2584.5,6.7123129]
[1727005310567,1.01411757,2584.7,2584.5,5.19458419]
[1727005310862,1.01411757,2584.7,2584.6,2.74889627]
[1727005312163,1.52062012,2584.7,2584.6,2.2434077]
[1727005312359,1.90572012,2584.7,2584.6,1.01132351]
[1727005313368,0.3851,2584.7,2584.6,2.537]
[1727005313562,0.3851,2584.7,2584.6,3.54832351]
[1727005314068,2.41520621,2584.7,2584.5,7.51082351]
[1727005315164,1.52178278,2584.6,2584.5,6.4995]
[1727005315654,2.41520621,2584.7,2584.5,6.4995]
[1727005316964,1.52165203,2584.6,2584.5,6.4995]
[1727005317162,1.52154343,2584.6,2584.5,6.4995]
[1727005318461,1.52154343,2584.6,2584.5,3.2917]
[1727005318662,2.41520621,2584.7,2584.5,3.2917]
[1727005319455,1.52131349,2584.6,2584.5,3.2917]
[1727005320758,1.52131349,2584.7,2584.5,4.30302351]
[1727005320963,1.01417372,2584.6,2584.5,4.30302351]
[1727005321473,1.01416052,2584.6,2584.5,4.30302351]
[1727005321668,1.90811349,2584.7,2584.5,4.30302351]
[1727005322372,1.52131349,2584.6,2584.5,4.30302351]
[1727005322568,1.52131349,2584.6,2584.5,3.2917]
[1727005324275,1.52131349,2584.6,2584.5,0.7547]
[1727005324466,1.52131349,2584.6,2584.5,3.2927]
[1727005325677,1.52131349,2584.6,2584.5,4.30402351]
[1727005325678,1.01412373,2584.6,2584.5,4.30402351]
[1727005331079,1.90811349,2584.7,2584.5,4.30402351]
[1727005331782,1.01406157,2584.6,2584.5,4.30402351]
[1727005332378,1.90811349,2584.7,2584.5,3.2927]
[1727005332776,1.52131349,2584.6,2584.5,3.2927]
[1727005333273,1.90811349,2584.7,2584.5,3.2927]
[1727005333675,1.52131349,2584.6,2584.5,3.2927]
[1727005334670,1.01400334,2584.6,2584.5,3.2927]
[1727005334874,1.52131349,2584.6,2584.5,3.2927]
[1727005335678,1.52131349,2584.7,2584.5,3.2927]
[1727005335883,1.01397957,2584.6,2584.5,4.30402351]
[1727005337274,1.52131349,2584.7,2584.5,4.30402351]
[1727005337785,1.01413504,2584.6,2584.5,4.30402351]
[1727005337978,1.90731349,2584.7,2584.5,4.30402351]
[1727005338385,1.01419949,2584.6,2584.5,4.30402351]
[1727005338587,1.90731349,2584.7,2584.5,4.30402351]
[1727005339081,1.52131349,2584.6,2584.5,4.30402351]
[1727005340774,1.52131349,2584.6,2584.5,3.2927]
[1727005341385,1.52131349,2584.6,2584.5,4.30402351]
[1727005342574,1.01435776,2584.6,2584.5,9.91130874]
[1727005342890,1.01435776,2584.7,2584.5,8.39449666]
[1727005343181,1.01435776,2584.7,2584.6,2.75036889]
[1727005344484,1.01434014,2584.8,2584.6,6.61916889]
[1727005344783,1.52131349,2584.9,2584.7,5.95816889]
[1727005344986,1.52131349,2584.9,2584.8,1.3796583]
[1727005345286,1.52131349,2584.9,2584.8,6.48545998]
[1727005345588,1.52131349,2584.9,2584.8,6.48544067]
[1727005345780,1.52131349,2584.9,2584.8,6.48527736]
[1727005345975,1.52131349,2585.0,2584.8,6.9911106]
[1727005346279,1.52131349,2585.0,2584.9,1.01139767]
[1727005346592,1.52131349,2585.2,2584.9,2.75419707]
[1727005346888,1.52131349,2585.2,2585.0,4.78492039]
[1727005347091,1.52131349,2585.2,2585.0,3.54809555]
[1727005347284,1.52131349,2585.2,2585.1,1.37919555]
[1727005347588,1.52131349,2585.2,2585.1,0.3681]
[1727005347781,2.03010621,2585.3,2585.1,0.3681]
[1727005348786,1.52069175,2585.2,2585.1,0.3681]
[1727005349978,1.52069175,2585.3,2585.1,0.3681]
[1727005350486,1.52069175,2585.3,2585.1,3.5759]
[1727005350680,1.52069175,2585.3,2585.1,0.3681]
[1727005352588,1.91249175,2585.4,2585.1,0.3681]
[1727005353295,1.52069175,2585.3,2585.1,0.3681]
[1727005353495,1.91249175,2585.4,2585.1,0.3681]
[1727005355791,1.91249175,2585.4,2585.2,3.2078]
[1727005355995,1.91249175,2585.4,2585.3,0.3984]
[1727005356491,1.52069175,2585.5,2585.3,0.3984]
[1727005356707,1.52069175,2585.5,2585.3,0.7703]
[1727005356900,1.52069175,2585.5,2585.4,0.4009]
[1727005358397,1.52069175,2585.5,2585.3,9.8703]
[1727005358602,0.3767,2585.5,2585.3,9.8703]
[1727005359801,0.3767,2585.5,2585.3,13.0781]
[1727005360102,0.3767,2585.5,2585.3,12.7062]
[1727005360899,0.3767,2585.5,2585.3,3.6062]
[1727005363698,1.92299175,2585.6,2585.4,0.19383368]
[1727005363899,0.4023,2585.6,2585.4,0.56453368]
[1727005364398,0.4023,2585.6,2585.5,2.536]
[1727005374195,2.28119175,2585.7,2585.5,2.536]
[1727005374196,1.88749175,2585.7,2585.5,2.536]
[1727005374394,0.4032,2585.6,2585.5,2.536]
[1727005385506,0.4032,2585.6,2585.4,0.3872]
[1727005385706,0.4032,2585.6,2585.5,2.536]
[1727005385906,0.4032,2585.6,2585.4,0.3872]
[1727005386114,0.4032,2585.6,2585.5,2.536]
[1727005388412,1.88749175,2585.7,2585.5,2.536]
[1727005388613,1.52069175,2585.6,2585.5,2.536]
[1727005391513,2.39690621,2585.7,2585.5,2.536]
[1727005393313,2.39690621,2585.7,2585.4,1.39829555]
[1727005393810,2.39690621,2585.7,2585.5,2.536]
[1727005394010,2.90492591,2585.7,2585.5,2.536]
[1727005394219,2.53812591,2585.6,2585.5,2.536]
[1727005394517,2.53812591,2585.6,2585.4,2.9232]
[1727005394813,2.40356263,2585.5,2585.4,2.9232]
[1727005397514,2.40422213,2585.5,2585.4,2.9232]
[1727005397714,2.02882213,2585.5,2585.4,2.9232]
[1727005398220,2.53812591,2585.6,2585.4,2.9232]
[1727005399811,2.53812591,2585.6,2585.4,0.3872]
[1727005400014,2.53812591,2585.6,2585.5,2.536]
[1727005401024,2.02952899,2585.6,2585.5,3.54709555]
[1727005404621,3.30732591,2585.7,2585.5,3.54709555]
[1727005405919,3.30732591,2585.7,2585.5,1.01109555]
[1727005406116,6.40532591,2585.6,2585.4,1.01109555]
[1727005406319,2.53812591,2585.6,2585.4,1.01109555]
[1727005406519,2.53812591,2585.5,2585.3,1.01109555]
[1727005406827,2.03012078,2585.4,2585.3,1.01109555]
[1727005407018,2.42462078,2585.4,2585.3,2.25493691]
[1727005407715,2.42462078,2585.4,2585.3,2.25486448]
[1727005407915,2.42462078,2585.4,2585.3,2.25486575]
[1727005408118,2.42462078,2585.4,2585.3,1.01109555]
[1727005409629,2.42426349,2585.4,2585.3,1.01109555]
[1727005409827,0.7794,2585.4,2585.3,1.01109555]
[1727005410018,2.80918118,2585.4,2585.3,1.01109555]
[1727005411026,2.80918118,2585.4,2585.2,3.92149555]
[1727005411524,2.80918118,2585.4,2585.2,4.28809555]
[1727005413334,2.80918118,2585.4,2585.2,4.66919555]
[1727005419319,2.80918118,2585.4,2585.2,3.54509555]
[1727005419524,2.80918118,2585.4,2585.1,1.51737223]
[1727005419525,2.02978118,2585.3,2585.1,1.01109555]
[1727005419822,2.53812591,2585.2,2584.9,1.01109555]
[1727005420022,2.02901964,2585.0,2584.8,5.11309555]
[1727005420221,0.3922,2584.9,2584.8,4.102]
[1727005422727,0.3922,2584.9,2584.6,1.01109555]
[1727005422923,0.3922,2584.9,2584.6,2.534]
[1727005422924,0.3887,2584.8,2584.6,2.534]
[1727005426830,0.3887,2584.8,2584.5,6.5088]
[1727005427427,0.3887,2584.8,2584.5,3.301]
[1727005428438,0.3922,2584.9,2584.5,3.301]
[1727005428634,2.02901964,2585.2,2584.7,3.2078]
[1727005428838,2.93742591,2585.3,2584.8,0.3827]
[1727005428839,2.80821964,2585.3,2584.8,0.3827]
[1727005429041,0.7792,2585.3,2584.9,0.3707]
[1727005432837,3.987,2585.3,2584.9,0.3707]
[1727005435738,0.7792,2585.3,2584.9,0.3707]
[1727005438343,0.7792,2585.3,2584.9,2.9057]
[1727005439040,3.987,2585.3,2584.9,2.9057]
[1727005440345,0.7792,2585.3,2584.9,2.9057]
[1727005443138,0.7792,2585.3,2584.9,0.3707]
[1727005443334,0.7792,2585.3,2584.9,2.9037]
[1727005445439,0.7792,2585.3,2585.0,3.2078]
[1727005445640,0.7792,2585.3,2584.9,2.9037]
[1727005450739,2.80821964,2585.3,2584.9,2.9037]
[1727005453446,1.51958953,2585.2,2584.9,2.9037]
[1727005454545,1.51958953,2585.1,2584.9,0.3707]
[1727005454847,1.51958953,2585.1,2584.9,2.9037]
[1727005455049,0.3782,2585.0,2584.9,2.9037]
[1727005456245,1.89778953,2585.0,2584.8,6.4913]
[1727005456550,2.28918953,2584.9,2584.5,3.54409555]
[1727005456748,2.28918953,2584.9,2584.7,0.4006]
[1727005456951,1.51958953,2584.8,2584.7,0.4006]
[1727005457153,2.28918953,2584.9,2584.7,0.4006]
[1727005458345,1.51958953,2584.8,2584.7,0.4006]
[1727005458653,2.28918953,2584.9,2584.7,0.4006]
[1727005459144,1.51958953,2584.8,2584.7,0.4006]
[1727005461541,1.51958953,2584.8,2584.7,0.7893]
[1727005471350,1.52116751,2584.8,2584.7,0.7893]
[1727005471762,1.52118379,2584.8,2584.7,0.7893]
[1727005473260,2.79861964,2584.9,2584.7,0.7893]
[1727005479457,2.79861964,2584.9,2584.7,0.4006]
[1727005479756,5.23681964,2584.8,2584.6,2.532]
[1727005480164,0.3939,2584.7,2584.6,2.532]
[1727005480457,0.3939,2584.7,2584.5,1.38539555]